bitfinex/quotes_SOLUSD_20260119
["timestamp","ask_amount","ask_price","bid_price","bid_amount"]
[1768853284725,1.29965725,134.5,134.47,11.75982969]
[1768853286521,1.29965725,134.5,134.47,8.78719808]
[1768853286821,1.29965725,134.5,134.47,11.75982969]
[1768853287625,1.29965725,134.5,134.46,25.06791535]
[1768853287834,1.29965725,134.49,134.46,25.06791535]
[1768853289232,1.29965725,134.49,134.46,28.04054696]
[1768853294931,1.29965725,134.48,134.45,8.78854384]
[1768853295121,1.29965725,134.48,134.45,28.04117545]
[1768853295820,1.29965725,134.48,134.44,7.43798623]
[1768853296019,1.29965725,134.48,134.43,20.60347563]
[1768853296942,1.29965725,134.47,134.44,7.438202]
[1768853297234,1.29965725,134.47,134.43,25.06937902]
[1768853297830,1.29965725,134.47,134.43,17.63084402]
[1768853297831,1.29965725,134.46,134.43,17.63084402]
[1768853298024,1.23965726,134.46,134.42,12.67070353]
[1768853298232,1.23965726,134.46,134.43,7.4387742]
[1768853298834,1.23965726,134.46,134.43,8.78961822]
[1768853300138,1.23965726,134.46,134.43,7.4387742]
[1768853301439,1.23965726,134.46,134.42,11.76263245]
[1768853302217,1.23965726,134.46,134.42,8.79000084]
[1768853302435,1.23965726,134.46,134.42,11.76263245]
[1768853304338,1.23965726,134.46,134.42,10.41178843]
[1768853304541,1.23965726,134.46,134.43,1.30207236]
[1768853305539,1.23965726,134.46,134.43,11.71340909]
[1768853305735,1.23965726,134.46,134.44,1.30207236]
[1768853305916,1.23965726,134.46,134.43,11.71340909]
[1768853309739,1.23965726,134.46,134.43,1.30207236]
[1768853312851,1.17965727,134.46,134.43,1.30207236]
[1768853318735,1.11965728,134.46,134.43,1.30207236]
[1768853318933,7.43718089,134.46,134.42,10.41174048]
[1768853319140,7.43718089,134.46,134.42,11.71381284]
[1768853319654,7.43718089,134.46,134.43,1.30207236]
[1768853320662,1.34114654,134.46,134.43,1.30207236]
[1768853322160,1.28114655,134.46,134.43,1.30207236]
[1768853326664,1.28114655,134.46,134.42,11.66650337]
[1768853327264,1.28114655,134.46,134.42,10.41457357]
[1768853327462,1.28114655,134.46,134.43,1.2519298]
[1768853327775,1.34114654,134.45,134.42,11.66650337]
[1768853328057,1.22114656,134.45,134.42,11.66650337]
[1768853328865,1.22114656,134.45,134.43,1.2519298]
[1768853329468,1.16114657,134.45,134.43,1.2519298]
[1768853329759,1.16114657,134.45,134.42,4.2273945]
[1768853330160,1.16114657,134.45,134.42,1.2519298]
[1768853332367,1.16114657,134.45,134.42,4.2273945]
[1768853335372,1.16114657,134.45,134.42,11.66675609]
[1768853336160,1.10114658,134.45,134.42,11.66675609]
[1768853340176,1.10114658,134.45,134.42,8.69129139]
[1768853340375,1.3073384,134.44,134.41,16.28]
[1768853340566,1.3073384,134.44,134.42,2.9754647]
[1768853340755,1.3073384,134.45,134.42,11.70267]
[1768853341184,1.3073384,134.45,134.42,8.7272053]
[1768853342872,1.3073384,134.45,134.42,11.70267]
[1768853343069,1.3073384,134.46,134.43,1.28785448]
[1768853343279,1.3073384,134.46,134.43,4.26331918]
[1768853344987,1.3073384,134.46,134.43,11.70203243]
[1768853346274,1.3073384,134.46,134.44,2.9754647]
[1768853348987,1.3073384,134.46,134.43,8.72656773]
[1768853349174,1.3073384,134.46,134.44,2.9754647]
[1768853351390,1.3073384,134.46,134.43,11.70203243]
[1768853353589,1.3073384,134.46,134.44,1.28785448]
[1768853353791,1.3073384,134.47,134.44,4.26331918]
[1768853356483,1.3073384,134.47,134.44,1.28785448]
[1768853356690,1.3073384,134.47,134.44,4.26331918]
[1768853358496,8.74395668,134.47,134.44,4.26331918]
[1768853358674,8.74395668,134.47,134.44,1.28785448]
[1768853359891,1.3073384,134.46,134.44,1.28785448]
[1768853360090,1.3073384,134.46,134.43,11.70203243]
[1768853360287,1.3073384,134.46,134.44,1.28785448]
[1768853361394,1.3073384,134.46,134.43,11.70203243]
[1768853361894,1.3073384,134.46,134.44,1.28785448]
[1768853365803,8.68715948,134.47,134.44,1.28785448]
[1768853367101,8.68715948,134.47,134.45,1.365892]
[1768853369002,8.68715948,134.47,134.44,4.3413567]
[1768853369701,8.68715948,134.47,134.44,1.365892]
[1768853369885,8.68715948,134.47,134.44,4.3413567]
[1768853370085,8.68715948,134.47,134.44,1.365892]
[1768853370280,1.25050348,134.46,134.43,16.3]
[1768853370480,1.25050348,134.46,134.43,20.6413567]
[1768853372902,8.6876682,134.46,134.43,20.6413567]
[1768853375912,1.25050348,134.46,134.44,2.9754647]
[1768853376293,1.25050348,134.46,134.44,4.3413567]
[1768853382918,1.25050348,134.46,134.44,4.34063828]
[1768853395133,1.25149139,134.47,134.44,11.77888009]
[1768853395310,1.25149139,134.47,134.45,1.31352481]
[1768853395507,1.25149139,134.47,134.44,10.41298809]
[1768853395707,1.25149139,134.47,134.44,11.7265129]
[1768853395922,1.25149139,134.47,134.45,2.97474628]
[1768853400736,1.25149139,134.46,134.44,4.28827109]
[1768853401027,8.68812328,134.47,134.44,4.28827109]
[1768853401827,8.68812328,134.47,134.44,1.31352481]
[1768853403125,1.25149139,134.47,134.44,1.31352481]
[1768853404615,8.68818371,134.47,134.44,1.31352481]
[1768853404812,8.68818371,134.47,134.44,4.28827109]
[1768853408047,8.68818371,134.47,134.44,1.31352481]
[1768853426357,1.29949767,134.46,134.43,16.3]
[1768853427056,1.29949767,134.46,134.43,19.27474628]
[1768853428153,7.43724907,134.46,134.43,19.27474628]
[1768853428339,1.29949767,134.45,134.43,19.27474628]
[1768853430259,1.29949767,134.45,134.43,2.97474628]
[1768853430744,8.73674674,134.46,134.43,4.17815229]
[1768853431648,1.29949767,134.45,134.42,4.17815229]
[1768853431851,1.29949767,134.45,134.42,20.45815229]
[1768853434257,8.73722682,134.45,134.42,20.45815229]
[1768853434642,8.73722682,134.45,134.42,17.48340601]
[1768853435244,1.29949767,134.44,134.42,16.28]
[1768853435458,1.23949768,134.44,134.42,16.28]
[1768853436463,10.41219216,134.46,134.42,24.92275549]
[1768853437367,1.29949767,134.45,134.42,24.92275549]
[1768853441568,1.29949767,134.45,134.42,27.89750177]
[1768853442881,1.29949767,134.45,134.42,27.89831367]
[1768853454185,1.29949767,134.45,134.42,24.92275549]
[1768853454361,1.29949767,134.45,134.42,27.89831367]
[1768853458883,1.29949767,134.45,134.43,2.97555818]
[1768853461187,1.29949767,134.45,134.43,10.41432011]
[1768853461365,1.29949767,134.45,134.43,11.64778213]
[1768853461765,1.25692099,134.47,134.45,1.23346202]
[1768853461970,1.25692099,134.47,134.45,4.2090202]
[1768853463181,1.25692099,134.49,134.46,4.2090202]
[1768853463390,1.25692099,134.49,134.47,2.97555818]
[1768853464267,1.25692099,134.5,134.48,2.97555818]
[1768853464466,1.25692099,134.5,134.48,2.94555818]
[1768853465383,8.69091663,134.52,134.49,4.2090202]
[1768853465584,8.69091663,134.52,134.49,4.1790202]
[1768853466284,1.25692099,134.51,134.49,4.1790202]
[1768853467167,1.25692099,134.51,134.49,11.61434584]
[1768853467781,1.25692099,134.52,134.5,2.97555818]
[1768853470175,1.25692099,134.52,134.49,4.1790202]
[1768853477789,1.25692099,134.52,134.5,2.97555818]
[1768853481392,8.69084108,134.52,134.5,2.97555818]
[1768853483009,1.25692099,134.52,134.5,2.97555818]
[1768853483505,1.25692099,134.52,134.5,4.20461729]
[1768853488401,1.25692099,134.52,134.5,2.97555818]
[1768853488720,1.25692099,134.52,134.51,2.97555818]
[1768853488919,1.16080334,134.53,134.51,2.97555818]
[1768853489221,1.16080334,134.53,134.52,2.97555818]
[1768853489731,1.16080334,134.53,134.51,2.97555818]
[1768853491950,1.16080334,134.53,134.52,2.97555818]
[1768853492134,1.16080334,134.53,134.5,1.22905911]
[1768853492135,1.16080334,134.53,134.51,2.97555818]
[1768853493522,23.71136775,134.57,134.53,1.22905911]
[1768853493730,1.16080334,134.56,134.54,2.97555818]
[1768853494037,1.16080334,134.56,134.54,4.20461729]
[1768853494738,1.16080334,134.56,134.55,2.97555818]
[1768853495837,1.16080334,134.56,134.54,4.20461729]
[1768853498048,1.16080334,134.56,134.54,1.22905911]
[1768853498425,8.59244352,134.56,134.54,1.22905911]
[1768853498629,8.59244352,134.56,134.53,1.22905911]
[1768853498831,8.59244352,134.56,134.53,4.20461729]
[1768853499361,1.16080334,134.56,134.53,4.20461729]
[1768853502751,1.16080334,134.56,134.54,2.97555818]
[1768853505052,1.16080334,134.56,134.54,2.97023866]
[1768853507859,1.16080334,134.56,134.54,4.11536034]
[1768853511864,1.16080334,134.56,134.54,2.97023866]
[1768853513159,1.1490125,134.57,134.54,4.17000973]
[1768853514764,1.1490125,134.57,134.54,1.19977107]
[1768853514974,8.58016905,134.57,134.54,1.19977107]
[1768853522554,8.58016905,134.57,134.54,4.17000973]
[1768853522750,8.65953711,134.58,134.56,2.97023866]
[1768853522951,0.08000002,134.58,134.57,1.19977107]
[1768853523266,0.08000002,134.58,134.57,1.16977107]
[1768853523963,0.08000002,134.58,134.56,2.97023866]
[1768853524473,0.08000002,134.58,134.54,16.28]
[1768853524474,1.22901252,134.58,134.54,16.28]
[1768853524676,8.65964106,134.58,134.54,19.25023866]
[1768853524971,8.65964106,134.58,134.54,26.68295046]
[1768853525145,8.65964106,134.58,134.55,1.19977107]
[1768853526481,8.65964106,134.58,134.55,4.17000973]
[1768853526771,1.1490125,134.57,134.55,4.17000973]
[1768853526973,1.1490125,134.57,134.54,17.47977107]
[1768853527163,1.1490125,134.57,134.55,1.19977107]
[1768853540779,1.1490125,134.56,134.52,1.19977107]
[1768853540987,1.1490125,134.56,134.52,4.17000973]
[1768853541160,1.1490125,134.56,134.52,11.60365165]
[1768853541361,1.1490125,134.56,134.53,4.17000973]
[1768853541872,1.1490125,134.56,134.53,1.19977107]
[1768853542376,1.1490125,134.56,134.53,4.17000973]
[1768853545888,8.58069827,134.56,134.53,4.17000973]
[1768853546270,8.58069827,134.56,134.53,1.19977107]
[1768853548887,1.09997532,134.55,134.52,4.11680408]
[1768853553698,8.53217886,134.55,134.52,4.11680408]
[1768853558973,8.53217886,134.55,134.52,1.14656542]
[1768853564997,1.15947972,134.54,134.48,16.28]
[1768853565293,1.15947972,134.52,134.49,1.13831647]
[1768853566082,8.59366659,134.52,134.49,1.13831647]
[1768853566280,1.15947972,134.51,134.48,1.13831647]
[1768853567507,8.59408592,134.51,134.48,1.13831647]
[1768853568309,1.15947972,134.5,134.47,1.13831647]
[1768853568606,10.40778602,134.51,134.44,1.13831647]
[1768853568607,1.15947972,134.49,134.44,1.13831647]
[1768853568795,1.15947972,134.47,134.44,1.13831647]
[1768853571433,1.15947972,134.47,134.45,1.13831647]
[1768853571736,1.09947973,134.47,134.45,1.13831647]
[1768853575623,1.03947974,134.47,134.45,1.13831647]
[1768853576128,7.43557838,134.49,134.46,1.10211849]
[1768853576328,7.43557838,134.49,134.46,4.07529831]
[1768853576805,7.43557838,134.49,134.44,1.10211849]
[1768853577133,2.97317982,134.48,134.44,4.07529831]
[1768853577507,4.09145316,134.48,134.44,4.07529831]
[1768853577725,1.11827334,134.47,134.44,2.97317982]
[1768853577908,1.11827334,134.47,134.45,1.10211849]
[1768853590122,2.97317982,134.49,134.45,1.10211849]
[1768853590123,1.11827334,134.49,134.46,4.07529831]
[1768853591329,1.11827334,134.49,134.46,1.10211849]
[1768853591530,1.11827334,134.49,134.46,4.07529831]
[1768853592129,8.55379278,134.49,134.46,4.07529831]
[1768853593443,8.55379278,134.49,134.46,1.10211849]
[1768853616161,8.55379278,134.49,134.46,4.07529831]
[1768853616764,8.55379278,134.49,134.46,1.10211849]
[1768853616965,8.55379278,134.49,134.46,4.07529831]
[1768853617759,8.55379278,134.49,134.46,1.10211849]
[1768853634282,1.06287455,134.48,134.45,1.12448863]
[1768853635600,1.06287455,134.47,134.44,17.40448863]
[1768853635801,1.06287455,134.47,134.44,16.28]
[1768853636013,1.06287455,134.47,134.44,17.40448863]
[1768853638008,1.06287455,134.47,134.44,1.12448863]
[1768853643515,1.06287455,134.47,134.44,11.53680187]
[1768853643803,7.4363771,134.48,134.46,1.12448863]
[1768853644010,8.49840567,134.49,134.46,1.12448863]
[1768853646095,7.43553112,134.49,134.46,1.12448863]
[1768853646294,8.49840567,134.49,134.46,1.12448863]
[1768853653621,1.06287455,134.48,134.46,1.12448863]
[1768853657526,1.06287455,134.49,134.46,1.12448863]
[1768853660326,8.49859392,134.49,134.46,1.12448863]
[1768853667247,8.50610095,134.5,134.47,1.07085848]
[1768853670824,1.07089823,134.5,134.47,7.436573]
[1768853671033,11.47959967,134.51,134.48,1.07085848]
[1768853671236,1.07089823,134.5,134.48,1.04085848]
[1768853679948,1.07089823,134.5,134.48,4.01497279]
[1768853682149,1.1187023,134.51,134.48,2.97411431]
[1768853682447,1.1187023,134.51,134.48,4.01958514]
[1768853685258,8.55326689,134.51,134.48,4.01958514]
[1768853691067,8.55326689,134.51,134.48,4.01850302]
[1768853701575,8.55326689,134.51,134.48,1.04547083]
[1768853702066,1.03437429,134.5,134.48,1.04547083]
[1768853702868,8.46893888,134.51,134.48,1.04547083]
[1768853703174,8.46893888,134.51,134.48,4.01850302]
[1768853704797,8.46848657,134.52,134.5,1.08377845]
[1768853705457,8.46848657,134.52,134.49,2.97303219]
[1768853705458,8.46848657,134.52,134.49,4.05681064]
[1768853707278,1.03437429,134.52,134.5,4.05681064]
[1768853708382,1.03437429,134.54,134.51,1.08377845]
[1768853708600,8.46682527,134.55,134.53,2.97303219]
[1768853708801,8.46682527,134.55,134.53,2.94303219]
[1768853709006,8.46682527,134.55,134.52,1.05377845]
[1768853709505,1.03437429,134.54,134.52,1.05377845]
[1768853709707,1.03437429,134.54,134.52,2.97303219]
[1768853709913,1.03437429,134.54,134.5,2.97303219]
[1768853710694,1.03437429,134.54,134.49,27.77206429]
[1768853710897,1.03437429,134.54,134.5,4.05681064]
[1768853713477,8.46738139,134.54,134.51,1.08377845]
[1768853713678,1.03437429,134.53,134.5,4.05681064]
[1768853718797,1.03437429,134.52,134.5,2.97303219]
[1768853719000,1.03437429,134.52,134.49,2.97303219]
[1768853719203,1.03437429,134.52,134.49,4.05681064]
[1768853719811,1.03437429,134.52,134.49,1.08377845]
[1768853721001,1.03437429,134.51,134.47,1.08377845]
[1768853721198,1.03437429,134.51,134.47,4.05681064]
[1768853721395,1.03437429,134.51,134.47,11.49336312]
[1768853723501,1.03437429,134.51,134.48,1.03473908]
[1768853723908,8.46878206,134.51,134.48,1.03473908]
[1768853725010,8.46878206,134.51,134.48,4.00777127]
[1768853731713,8.46878206,134.51,134.48,1.03473908]
[1768853733614,1.03437429,134.51,134.48,1.03473908]
[1768853734317,8.46881892,134.51,134.48,1.03473908]
[1768853735213,0.99257659,134.5,134.48,1.03473908]
[1768853735420,0.99257659,134.5,134.47,8.42647962]
[1768853735618,0.99257659,134.5,134.48,0.98997931]
[1768853740926,1.02954614,134.51,134.48,0.98997931]
[1768853751725,11.43693101,134.52,134.48,0.98997931]
[1768853752127,10.40738487,134.52,134.48,0.98997931]
[1768853752328,1.02954614,134.51,134.48,0.98997931]
[1768853754018,8.46407721,134.51,134.48,0.98997931]
[1768853756340,0.97947038,134.5,134.48,0.98997931]
[1768853758424,0.97947038,134.49,134.46,17.26491604]
[1768853759139,0.97947038,134.49,134.47,0.98491604]
[1768853761533,8.41445064,134.5,134.47,0.98491604]
[1768853771336,11.38774522,134.5,134.47,0.98491604]
[1768853771847,0.97947038,134.5,134.47,0.98491604]
[1768853772058,8.41449274,134.5,134.47,0.98491604]
[1768853776256,0.97947038,134.5,134.47,0.98491604]
[1768853776559,0.97947038,134.5,134.47,8.42148918]
[1768853778361,0.97947038,134.5,134.47,0.98491604]
[1768853779884,0.97947038,134.51,134.48,0.98491604]
[1768853783886,0.97947038,134.51,134.48,3.95821062]
[1768853788689,8.477467,134.52,134.5,0.95969986]
[1768853788863,8.477467,134.52,134.49,2.97329458]
[1768853789286,7.43413434,134.52,134.49,2.97329458]
[1768853789491,8.47690296,134.53,134.5,2.97329458]
[1768853790790,8.47690296,134.53,134.5,3.93299444]
[1768853791689,8.47690296,134.53,134.51,2.97329458]
[1768853791889,8.47616693,134.54,134.51,3.93299444]
[1768853792289,8.47616693,134.54,134.52,2.97329458]
[1768853792506,8.47616693,134.54,134.52,3.93299444]
[1768853795511,1.04333266,134.55,134.52,3.93299444]
[1768853795702,1.04333266,134.55,134.53,0.95969986]
[1768853796010,1.04333266,134.55,134.52,3.93299444]
[1768853798224,1.04333266,134.55,134.53,3.93299444]
[1768853798384,8.47496167,134.56,134.54,3.93299444]
[1768853798711,1.04333266,134.56,134.54,3.90299444]
[1768853799017,8.47467571,134.57,134.54,3.90299444]
[1768853799701,1.04333266,134.56,134.54,3.90299444]
[1768853799905,1.04333266,134.56,134.54,2.94329458]
[1768853802727,1.04333266,134.56,134.54,3.93157331]
[1768853802893,7.51075498,134.58,134.56,0.98827873]
[1768853803097,0.08000002,134.58,134.56,3.93157331]
[1768853803318,0.08000002,134.58,134.56,2.97329458]
[1768853803521,0.08000002,134.58,134.57,2.97329458]
[1768853803808,1.14086478,134.6,134.57,2.97329458]
[1768853804021,0.1,134.6,134.58,2.97329458]
[1768853804628,1.14086478,134.61,134.59,2.97329458]
[1768853804924,0.1,134.62,134.6,2.97329458]
[1768853805093,0.1,134.62,134.6,3.96157331]
[1768853805907,1.14086478,134.62,134.6,2.97329458]
[1768853806328,1.14086478,134.62,134.6,3.96157331]
[1768853806636,1.14086478,134.63,134.61,3.96157331]
[1768853806823,0.1,134.63,134.61,3.93157331]
[1768853807739,1.14086478,134.63,134.61,2.94329458]
[1768853808342,1.14086478,134.63,134.6,3.96157331]
[1768853808721,1.14086478,134.63,134.61,3.96157331]
[1768853808944,0.3704524,134.64,134.63,0.98827873]
[1768853809138,0.1,134.65,134.63,3.93157331]
[1768853810941,1.14086478,134.66,134.64,2.97329458]
[1768853811239,1.14086478,134.66,134.64,2.94329458]
[1768853812044,1.14086478,134.66,134.64,2.91329458]
[1768853812941,1.14086478,134.66,134.64,2.96586157]
[1768853813941,1.14086478,134.66,134.63,8.41598121]
[1768853813942,1.14086478,134.66,134.65,2.96586157]
[1768853814117,1.14086478,134.66,134.64,2.96586157]
[1768853814320,1.14086478,134.66,134.64,3.94631876]
[1768853815131,1.14086478,134.66,134.64,0.98045719]
[1768853815335,1.14086478,134.66,134.64,3.94631876]
[1768853816038,0.1,134.67,134.65,3.94631876]
[1768853816240,0.1,134.67,134.66,2.96586157]
[1768853816439,0.1,134.67,134.66,3.94631876]
[1768853816654,8.96756829,134.69,134.66,3.36330513]
[1768853816840,0.98089483,134.68,134.66,2.18035139]
[1768853817036,0.98089483,134.68,134.66,0.99739075]
[1768853818343,0.98089483,134.68,134.66,0.96739075]
[1768853820453,8.40601158,134.68,134.66,2.96586157]
[1768853820750,8.40601158,134.68,134.65,3.64362262]
[1768853821655,0.98089483,134.68,134.65,3.64362262]
[1768853822035,0.98089483,134.67,134.64,2.96586157]
[1768853822352,0.98089483,134.66,134.64,2.96586157]
[1768853822537,0.98089483,134.66,134.63,0.68025713]
[1768853822737,0.98089483,134.66,134.64,2.96586157]
[1768853824039,0.98089483,134.66,134.64,2.93586157]
[1768853826859,0.98089483,134.67,134.65,2.96586157]
[1768853827155,0.98089483,134.68,134.65,3.65006341]
[1768853827361,0.98089483,134.68,134.66,3.65082711]
[1768853827568,0.98089483,134.68,134.66,0.68496554]
[1768853827862,1.54288222,134.69,134.66,3.62082711]
[1768853828748,1.54288222,134.69,134.67,2.96586157]
[1768853829137,1.54288222,134.69,134.66,3.62082711]
[1768853830456,1.54288222,134.69,134.66,11.04686242]
[1768853830639,1.54288222,134.69,134.67,2.96586157]
[1768853831962,1.54288222,134.69,134.67,2.93586157]
[1768853833263,0.56198739,134.69,134.67,3.59563405]
[1768853833466,0.98089483,134.71,134.68,3.62563405]
[1768853833650,7.42295249,134.72,134.68,0.65977248]
[1768853833850,7.42295249,134.72,134.69,2.96586157]
[1768853834050,7.42295249,134.72,134.69,2.93586157]
[1768853834350,7.42243191,134.73,134.69,3.91631876]
[1768853834556,7.42243191,134.73,134.7,2.96586157]
[1768853834763,83.32404153,134.76,134.71,3.94631876]
[1768853835174,7.42138303,134.75,134.71,3.94631876]
[1768853835548,7.88088076,134.75,134.71,3.94631876]
[1768853836368,7.88088076,134.75,134.71,0.98045719]
[1768853837068,10.84674233,134.75,134.71,0.98045719]
[1768853840152,7.88088076,134.75,134.71,0.98045719]
[1768853840366,0.46100242,134.74,134.71,0.98045719]
[1768853842182,7.88300277,134.74,134.71,0.98045719]
[1768853843784,7.88300277,134.74,134.7,1.02236241]
[1768853843785,0.42025728,134.73,134.7,1.02236241]
[1768853845182,7.84260639,134.73,134.7,1.02236241]
[1768853846365,7.84260639,134.73,134.7,0.99236241]
[1768853848090,7.42234911,134.73,134.7,0.99236241]
[1768853848978,7.82425261,134.73,134.7,0.99236241]
[1768853851175,10.79011418,134.73,134.7,0.99236241]
[1768853852797,10.38821068,134.73,134.69,7.42444411]
[1768853853093,7.78823758,134.72,134.69,1.02236241]
[1768853853293,0.36534467,134.71,134.68,1.02236241]
[1768853853692,7.77948016,134.72,134.69,1.02236241]
[1768853854298,0.35658725,134.72,134.69,1.02236241]
[1768853854503,3.31379198,134.73,134.69,1.02236241]
[1768853854708,10.73569004,134.74,134.7,1.02236241]
[1768853854894,7.76982847,134.74,134.7,1.02236241]
[1768853855695,3.30523458,134.73,134.7,1.02236241]
[1768853856088,3.30523458,134.73,134.68,16.26]
[1768853856089,0.33937301,134.72,134.69,1.02236241]
[1768853859008,10.38861423,134.73,134.69,1.02236241]
[1768853859215,10.70290026,134.73,134.69,1.02236241]
[1768853860312,10.70290026,134.73,134.69,8.44672793]
[1768853860495,10.68578716,134.74,134.7,1.02236241]
[1768853860810,10.7151539,134.75,134.7,0.99236241]
[1768853861309,10.7151539,134.75,134.69,28.95136748]
[1768853862084,10.7151539,134.75,134.69,10.39022709]
[1768853862288,10.7151539,134.75,134.69,7.42436552]
[1768853862508,10.7151539,134.75,134.69,10.39022709]
[1768853862701,10.7151539,134.75,134.7,0.8646455]
[1768853863512,2.96586157,134.74,134.7,0.8646455]
[1768853865112,10.7151539,134.75,134.7,0.8646455]
[1768853868497,7.74929233,134.75,134.7,0.8646455]
[1768853868698,10.7151539,134.75,134.7,0.8646455]
[1768853869217,0.25322434,134.74,134.7,0.8646455]
[1768853872014,7.42225191,134.73,134.7,0.8646455]
[1768853872222,7.66182738,134.73,134.7,0.8646455]
[1768853872401,10.62768895,134.73,134.7,0.8646455]
[1768853873122,10.6256913,134.73,134.7,0.8346455]
[1768853873419,7.66182738,134.73,134.7,0.8346455]
[1768853879824,7.66182738,134.73,134.7,0.8046455]
[1768853881036,7.42225191,134.73,134.7,0.8046455]
[1768853881402,7.65832559,134.74,134.7,0.8046455]
[1768853885005,7.42196194,134.74,134.7,0.8046455]
[1768853885205,7.63013326,134.74,134.7,0.8046455]
[1768853886330,7.42196194,134.74,134.7,0.8046455]
[1768853886509,7.42196194,134.74,134.7,0.7746455]
[1768853886705,7.42196194,134.74,134.7,7.42389049]
[1768853886904,7.6541076,134.75,134.71,2.96386392]
[1768853887211,30.14515938,134.78,134.74,2.96386392]
[1768853887522,22.72561283,134.78,134.76,2.96386392]
[1768853887716,22.72561283,134.78,134.77,2.96386392]
[1768853888023,0.1,134.79,134.77,2.96386392]
[1768853888734,0.1,134.79,134.78,0.82833926]
[1768853888910,0.1,134.79,134.77,0.82833926]
[1768853889313,0.21743573,134.77,134.74,0.82833926]
[1768853889528,3.18129965,134.77,134.74,0.82833926]
[1768853890839,10.6015427,134.77,134.74,0.82833926]
[1768853891529,7.42024305,134.77,134.74,0.82833926]
[1768853891714,10.59080374,134.78,134.74,0.82833926]
[1768853892629,2.96386392,134.77,134.74,0.82833926]
[1768853896522,7.70518239,134.79,134.75,0.82833926]
[1768853896837,0.1,134.79,134.77,0.82833926]
[1768853899835,10.48281191,134.79,134.77,0.82833926]
[1768853905658,7.51894799,134.79,134.77,0.82833926]
[1768853907157,10.62619204,134.79,134.76,0.82343111]
[1768853907352,3.10362094,134.78,134.75,0.82343111]
[1768853907664,2.96386392,134.77,134.75,0.82343111]
[1768853910029,10.51656298,134.77,134.74,0.82343111]
[1768853910256,3.0964991,134.76,134.73,0.82343111]
[1768853910439,3.09299941,134.75,134.71,8.24663411]
[1768853910640,3.09299941,134.75,134.71,0.82343111]
[1768853910840,2.96386392,134.74,134.71,0.82343111]
[1768853911140,10.51435541,134.75,134.71,8.24676477]
[1768853911334,10.51435541,134.75,134.72,0.82343111]
[1768853913557,3.09299941,134.75,134.72,0.82343111]
[1768853915658,0.11223085,134.72,134.69,17.08343111]
[1768853915862,0.11223085,134.72,134.69,20.04729503]
[1768853916563,3.07609477,134.72,134.69,17.08343111]
[1768853916755,2.96386392,134.71,134.69,0.82343111]
[1768853916953,3.07609477,134.72,134.69,0.82343111]
[1768853918140,0.11223085,134.72,134.69,0.82343111]
[1768853920164,7.42173737,134.74,134.71,0.82343111]
[1768853922063,7.51188366,134.74,134.71,0.82343111]
[1768853922663,2.96386392,134.73,134.7,0.71789317]
[1768853922965,3.05099855,134.73,134.7,0.71789317]
[1768853923549,7.50986435,134.73,134.7,0.71789317]
[1768853923860,10.46993562,134.74,134.7,0.71789317]
[1768853924661,7.42191414,134.74,134.7,0.71789317]
[1768853924969,7.42191414,134.74,134.71,0.71789317]
[1768853925669,0.08121468,134.75,134.71,0.71789317]
[1768853925850,3.0450786,134.75,134.71,0.71789317]
[1768853926049,2.96386392,134.75,134.71,0.71789317]
[1768853926369,29.0121434,134.76,134.72,0.71789317]
[1768853927054,3.03929387,134.75,134.72,0.71789317]
[1768853927470,7.42170105,134.74,134.72,0.71789317]
[1768853928366,7.49667277,134.75,134.72,0.71789317]
[1768853928560,10.46053669,134.75,134.72,0.71789317]
[1768853928969,3.03929387,134.75,134.72,0.71789317]
[1768853930574,10.4604925,134.75,134.72,0.71789317]
[1768853934572,0.07542995,134.75,134.72,0.71789317]
[1768853934776,3.03929387,134.75,134.72,0.71789317]
[1768853934975,3.03843706,134.75,134.72,0.71789317]
[1768853935173,3.03843706,134.75,134.71,0.76503042]
[1768853935473,0.07542995,134.75,134.72,0.76503042]
[1768853935775,3.03843706,134.75,134.72,0.76503042]
[1768853935976,3.01143591,134.76,134.72,0.76503042]
[1768853936879,7.42115027,134.75,134.72,0.76503042]
[1768853938188,3.0064,134.75,134.72,0.76503042]
[1768853940092,3.00147912,134.74,134.7,0.76503042]
[1768853940288,10.42372314,134.74,134.7,0.76503042]
[1768853940890,7.46071603,134.74,134.7,3.72803753]
[1768853941093,7.46071603,134.74,134.71,0.76503042]
[1768853941279,7.42224402,134.74,134.71,0.76503042]
[1768853941895,7.45501481,134.75,134.72,0.76503042]
[1768853943170,0.03366352,134.75,134.72,0.76503042]
[1768853945700,2.99667063,134.75,134.72,0.76503042]
[1768853945997,0.03366352,134.75,134.72,0.76503042]
[1768853946198,2.99667063,134.75,134.72,0.76503042]
[1768853947499,0.03366352,134.75,134.72,0.76503042]
[1768853947799,2.99667063,134.75,134.72,0.76503042]
[1768853948301,10.4180565,134.75,134.72,0.76503042]
[1768853949777,10.38360669,134.76,134.72,0.76503042]
[1768853950892,7.42059958,134.76,134.72,0.76503042]
[1768853951373,7.42059958,134.76,134.72,2.96300711]
[1768853951581,7.42059958,134.76,134.73,0.76503042]
[1768853953096,18.64815619,134.79,134.73,3.72803753]
[1768853953299,18.64815619,134.79,134.75,0.76503042]
[1768853953602,21.64819641,134.79,134.75,0.73503042]
[1768853953901,7.41949844,134.78,134.75,0.73503042]
[1768853954301,7.41949844,134.78,134.75,2.96300711]